[Event "Charlotte Spring GM-A 2024"]
[Site "Charlotte"]
[Date "2024.03.30"]
[Round "5.2"]
[White "Putnam, Liam"]
[Black "Gauri, Shankar"]
[Result "1/2-1/2"]
[ECO "E16"]
[WhiteElo "2323"]
[BlackElo "2345"]
[Annotator "RC"]
[PlyCount "58"]
[EventDate "2024.03.27"]
[EventType "tourn"]
[EventCountry "USA"]
[SourceTitle "playchess.com"]
[Source "ChessBase"]
[SourceQuality "1"]
[TimeControl "5400+30"]

1. d4 {[%emt 1:31:00]} Nf6 {[%emt 1:31:00]} 2. c4 {[%emt 0:00:30]} e6 {[%emt 0:00:30]} 3. g3 {[%emt 0:00:30]} d5 {[%emt 0:00:30]} 4. Bg2 {[%emt 0:00:30]} Bb4+ {[%emt 0:00:30]} 5. Nd2 {[%emt 0:00:30]} O-O {[%emt 0:00:30]} 6. Ngf3 {[%emt 0:00:30]} b6 {[%emt 0:00:30]} 7. O-O {[%emt 0:00:30]} Bb7 {[%emt 0:00:30]} 8. Ne5 {[%emt 0:00:30]} a5 {[%emt 0:00:30]} 9. Qc2 {[%emt 0:00:30]} c5 {[%emt 0:00:30]} 10. cxd5 Bxd5 11. e4 Bb7 12. dxc5 Bxc5 13. Ndc4 Qe7 14. Bg5 h6 15. Bxf6 Qxf6 16. Rad1 Ra7 17. Nd3 Qe7 18. e5 Bxg2 19. Kxg2 Rc7 20. Qe2 Nc6 21. Qe4 b5 22. Nd2 Bb6 23. a4 Nd4 24. axb5 Rfc8 25. Rc1 Qd7 26. Rxc7 Rxc7 27. Rc1 Rxc1 28. Nxc1 Qxb5 29. Nd3 a4 1/2-1/2

[Event "Charlotte Spring GM-A 2024"]
[Site "Charlotte"]
[Date "2024.03.30"]
[Round "5.3"]
[White "Chen, Ryo"]
[Black "Cruz, Cristhian"]
[Result "1/2-1/2"]
[ECO "C07"]
[WhiteElo "2316"]
[BlackElo "2487"]
[Annotator "RC"]
[PlyCount "92"]
[EventDate "2024.03.27"]
[EventType "tourn"]
[EventCountry "USA"]
[SourceTitle "playchess.com"]
[Source "ChessBase"]
[SourceQuality "1"]
[TimeControl "5400+30"]

1. e4 {[%emt 1:31:00]} e6 {[%emt 1:31:00]} 2. d4 {[%emt 0:00:30]} d5 {[%emt 0:00:30]} 3. Nd2 c5 {[%emt 0:00:30]} 4. Ngf3 {[%emt 0:01:00]} cxd4 {[%emt 0:00:30]} 5. Nxd4 {[%emt 0:00:30]} Nf6 {[%emt 0:00:30]} 6. e5 Nfd7 {[%emt 0:00:30]} 7. N2f3 {[%emt 0:01:00]} Nc6 8. Bf4 {[%emt 0:00:30]} Be7 {[%emt 0:01:00]} 9. c3 {[%emt 0:00:30]} Nc5 {[%emt 0:00:30]} 10. Bb5 {[%emt 0:00:30]} Bd7 {[%emt 0:00:30]} 11. O-O {[%emt 0:00:30]} O-O {[%emt 0:00:30]} 12. Bd3 {[%emt 0:00:30]} Qb6 {[%emt 0:00:30]} 13. Bg5 {[%emt 0:00:30]} Nxd3 {[%emt 0:00:30]} 14. Nxc6 Bxc6 {[%emt 0:00:30]} 15. Bxe7 {[%emt 0:01:00]} Nxb2 {[%emt 0:00:30]} 16. Qb1 {[%emt 0:00:30]} h6 {[%emt 0:00:30]} 17. Bxf8 {[%emt 0:00:30]} Rxf8 {[%emt 0:00:30]} 18. Nd4 {[%emt 0:00:30]} Ba4 {[%emt 0:00:30]} 19. Qc1 {[%emt 0:00:30]} Nc4 20. f4 {[%emt 0:00:30]} Bd7 21. Qe1 {[%emt 0:00:30]} Rc8 22. Rb1 Qa6 23. g4 Na3 {[%emt 0:02:30]} 24. Rc1 {[%emt 0:01:30]} Bb5 {[%emt 0:00:30]} 25. Rf2 {[%emt 0:00:30]} Bd3 {[%emt 0:00:30]} 26. Qe3 {[%emt 0:00:30]} Be4 {[%emt 0:00:30]} 27. f5 Nb5 {[%emt 0:00:30]} 28. fxe6 {[%emt 0:01:00]} fxe6 {[%emt 0:00:30]} 29. g5 {[%emt 0:00:30]} hxg5 {[%emt 0:00:30]} 30. Qxg5 {[%emt 0:00:30]} Nxd4 {[%emt 0:00:30]} 31. cxd4 {[%emt 0:00:30]} Rxc1+ {[%emt 0:00:30]} 32. Qxc1 {[%emt 0:00:30]} Qd3 {[%emt 0:00:30]} 33. Qd2 {[%emt 0:00:30]} Qh3 {[%emt 0:00:30]} 34. Qf4 {[%emt 0:00:30]} Bf5 {[%emt 0:00:30]} 35. Rg2 {[%emt 0:00:30]} Qd3 {[%emt 0:00:30]} 36. Qd2 {[%emt 0:00:30]} Qb1+ {[%emt 0:00:30]} 37. Kf2 {[%emt 0:00:30]} b5 {[%emt 0:00:30]} 38. h4 {[%emt 0:00:30]} Qe4 {[%emt 0:00:30]} 39. Rh2 {[%emt 0:00:30]} b4 {[%emt 0:00:30]} 40. h5 {[%emt 0:00:30]} Kh7 {[%emt 0:00:30]} 41. h6 {[%emt 0:00:30]} g5 {[%emt 0:00:30]} 42. Qxg5 {[%emt 0:00:30]} Qc2+ {[%emt 0:00:30]} 43. Ke1 {[%emt 0:00:30]} Qb1+ {[%emt 0:00:30]} 44. Kf2 {[%emt 0:00:30]} Qc2+ {[%emt 0:00:30]} 45. Kf3 {[%emt 0:00:30]} Qe4+ {[%emt 0:00:30]} 46. Kf2 {[%emt 0:00:30]} Qc2+ {[%emt 0:00:30]} 1/2-1/2

[Event "Charlotte Spring GM-A 2024"]
[Site "Charlotte"]
[Date "2024.03.30"]
[Round "5.4"]
[White "Ali Marandi, Cemil Can"]
[Black "Cordova, Emilio"]
[Result "1/2-1/2"]
[ECO "C10"]
[WhiteElo "2516"]
[BlackElo "2551"]
[Annotator "TA"]
[PlyCount "28"]
[EventDate "2024.03.27"]
[EventType "tourn"]
[EventCountry "USA"]
[SourceTitle "playchess.com"]
[Source "ChessBase"]
[SourceQuality "1"]
[TimeControl "5400+30"]

{[%evp 10,28,68,21,20,0,-2,-17,0,-37,-32,-35,0,0,0,-52,0,0,0,-22,0]} 1. e4 {[%emt 1:31:00]} e6 2. d4 d5 3. Nc3 {[%emt 0:01:00]} dxe4 {[%emt 1:32:00]} 4. Nxe4 {[%emt 0:00:30]} Bd7 {[%emt 0:00:30]} 5. Nf3 {[%emt 0:00:30]} Bc6 {[%emt 0:00:30]} 6. Neg5 {[%emt 0:00:30]} (6. Bd3 $14) 6... Nd7 $11 {[%emt 0:00:30]} 7. Nxf7 Kxf7 {[%emt 0:00:30]} 8. Ng5+ Ke8 {[%emt 0:00:30]} 9. Nxe6 {[%emt 0:01:30]} Qe7 {[%emt 0:00:30]} 10. Qe2 {[%emt 0:00:30]} Kf7 {[%emt 0:00:30]} 11. Ng5+ {[%emt 0:00:30]} Ke8 {[%emt 0:00:30] ...Qxe2+ would now be deadly.} 12. Ne6 {[%emt 0:00:30]} Kf7 {[%emt 0:00:30]} 13. Ng5+ {[%emt 0:00:30]} Ke8 {[%emt 0:00:30] next ...Qxe2+ is good for Black.} 14. Ne6 {[%emt 0:00:30]} Kf7 {[%emt 0:00:30] Wards off d5.   Weighted Error Value: White=0.13 (very precise) /Black=0.14 (very precise) .  Inaccurate:     	White=1     	Black=1      OK:         	White=3     	Black=1      Best:        	White=3     	Black=3} 1/2-1/2

[Event "Charlotte Spring GM-A 2024"]
[Site "Charlotte"]
[Date "2024.03.30"]
[Round "5.5"]
[White "Levine, Joseph"]
[Black "Homa, Seth"]
[Result "1/2-1/2"]
[ECO "C55"]
[WhiteElo "2372"]
[BlackElo "2234"]
[Annotator "RC"]
[PlyCount "93"]
[EventDate "2024.03.27"]
[EventType "tourn"]
[EventCountry "USA"]
[SourceTitle "playchess.com"]
[Source "ChessBase"]
[SourceQuality "1"]
[TimeControl "5400+30"]

1. e4 {[%emt 1:31:00]} e5 {[%emt 1:31:00]} 2. Nf3 {[%emt 0:00:30]} Nc6 {[%emt 0:00:30]} 3. Bc4 {[%emt 0:00:30]} Nf6 {[%emt 0:00:30]} 4. d3 {[%emt 0:00:30]} h6 {[%emt 0:00:30]} 5. c3 {[%emt 0:00:30]} d6 {[%emt 0:00:30]} 6. a4 {[%emt 0:00:30]} g6 {[%emt 0:00:30]} 7. Nbd2 {[%emt 0:00:30]} Bg7 {[%emt 0:00:30]} 8. O-O {[%emt 0:00:30]} a5 {[%emt 0:00:30]} 9. d4 {[%emt 0:00:30]} O-O {[%emt 0:00:30]} 10. h3 {[%emt 0:00:30]} exd4 {[%emt 0:00:30]} 11. cxd4 {[%emt 0:00:30]} d5 {[%emt 0:00:30]} 12. exd5 {[%emt 0:00:30]} Nxd5 {[%emt 0:00:30]} 13. Ne4 {[%emt 0:00:30]} Nce7 {[%emt 0:00:30]} 14. Re1 {[%emt 0:00:30]} b6 {[%emt 0:00:30]} 15. Ra3 {[%emt 0:00:30]} Bb7 {[%emt 0:00:30]} 16. Ne5 {[%emt 0:00:30]} Nf5 {[%emt 0:00:30]} 17. Ng3 {[%emt 0:00:30]} Nxg3 {[%emt 0:00:30]} 18. Rxg3 {[%emt 0:00:30]} Qd6 {[%emt 0:00:30]} 19. h4 {[%emt 0:00:30]} h5 {[%emt 0:00:30]} 20. f4 {[%emt 0:00:30]} Rae8 {[%emt 0:00:30]} 21. Qb3 {[%emt 0:00:30]} Re6 {[%emt 0:00:30]} 22. Kh2 {[%emt 0:00:30]} Rf6 {[%emt 0:00:30]} 23. Rf1 {[%emt 0:00:30]} Ne7 {[%emt 0:00:30]} 24. Rd3 {[%emt 0:00:30]} Bd5 {[%emt 0:00:30]} 25. Bxd5 {[%emt 0:00:30]} Nxd5 {[%emt 0:00:30]} 26. f5 {[%emt 0:00:30]} Ne7 {[%emt 0:00:30]} 27. Bg5 {[%emt 0:00:30]} Rxf5 {[%emt 0:00:30]} 28. Bxe7 {[%emt 0:00:30]} Bxe5+ {[%emt 0:00:30]} 29. g3 {[%emt 0:00:30]} Qxe7 {[%emt 0:00:30]} 30. Rxf5 {[%emt 0:00:30]} gxf5 {[%emt 0:00:30]} 31. dxe5 {[%emt 0:00:30]} Qxe5 {[%emt 0:00:30]} 32. Re3 {[%emt 0:00:30]} Qf6 {[%emt 0:00:30]} 33. Qd1 {[%emt 0:00:30]} Qxb2+ {[%emt 0:00:30]} 34. Kh3 {[%emt 0:00:30]} Qf6 {[%emt 0:00:30]} 35. Qxh5 {[%emt 0:00:30]} Rd8 {[%emt 0:00:30]} 36. Rf3 {[%emt 0:00:30]} Qg6 {[%emt 0:00:30]} 37. Qxf5 {[%emt 0:00:30]} Qxf5+ {[%emt 0:00:30]} 38. Rxf5 {[%emt 0:00:30]} Rd4 {[%emt 0:00:30]} 39. Rg5+ {[%emt 0:00:30]} Kh7 {[%emt 0:00:30]} 40. Rh5+ {[%emt 0:00:30]} Kg6 {[%emt 0:00:30]} 41. Rg5+ {[%emt 0:00:30]} Kf6 {[%emt 0:00:30]} 42. Rg8 {[%emt 0:00:30]} Rxa4 {[%emt 0:00:30]} 43. h5 {[%emt 0:00:30]} Ra1 {[%emt 0:00:30]} 44. Kg2 {[%emt 0:00:30]} Ra2+ {[%emt 0:00:30]} 45. Kh3 {[%emt 0:00:30]} Ra1 {[%emt 0:00:30]} 46. Kg2 {[%emt 0:00:30]} Ra2+ {[%emt 0:00:30]} 47. Kh3 {[%emt 0:00:30]} 1/2-1/2

[Event "Charlotte Spring GM-A 2024"]
[Site "Charlotte"]
[Date "2024.03.30"]
[Round "6.2"]
[White "Cordova, Emilio"]
[Black "Levine, Joseph"]
[Result "1-0"]
[ECO "A17"]
[WhiteElo "2551"]
[BlackElo "2372"]
[Annotator "TA"]
[PlyCount "93"]
[EventDate "2024.03.27"]
[EventType "tourn"]
[EventCountry "USA"]
[SourceTitle "playchess.com"]
[Source "ChessBase"]
[SourceQuality "1"]
[TimeControl "5400+30"]

{[%evp 9,93,12,8,18,22,12,10,0,25,14,13,0,65,72,123,26,63,50,52,45,44,57,46,23,27,24,40,39,99,43,151,79,346,364,359,340,366,362,359,333,349,331,370,375,373,369,392,381,362,310,416,404,395,354,355,363,477,489,574,570,589,581,735,725,652,637,839,823,1153,1123,1064,1001,1748,1751,29973,29975,29986,29987,29987,29988,29988,29989,29989,29985,29990,29987]} 1. Nf3 {[%emt 0:05:25]} d5 {[%emt 0:00:11]} 2. e3 {[%emt 0:00:34]} Nf6 {[%emt 0:00:07]} 3. c4 {[%emt 0:00:07]} e6 {[%emt 0:00:08]} 4. Nc3 {[%emt 0:00:35]} dxc4 {[%emt 0:00:32]} 5. Bxc4 {[%emt 0:00:16]} a6 {[%emt 0:00:05]} 6. a4 {[%emt 0:03:18] A17: English Opening: 1...Nf6 with ...Bb4.} b6 {[%emt 0:01:35]} 7. d4 {[%emt 0:02:55]} Bb7 {[%emt 0:00:06]} 8. O-O {[%emt 0:00:31]} Bb4 {[%emt 0:00:39]} 9. Qe2 {[%emt 0:03:40]} O-O {[%emt 0:03:41]} 10. Bd3 {[%emt 0:00:40]} Nbd7 {[%emt 0:25:07]} ({Black should try} 10... c5 $11) 11. e4 $14 {[%emt 0:00:31][%cal Be3e4,Be4e5][%mdl 32]} c5 {[%emt 0:10:30]} (11... Re8 $142) 12. Na2 $146 {[%emt 0:11:51]} (12. e5 $16) ({Predecessor:} 12. e5 cxd4 13. exf6 dxc3 14. fxg7 Kxg7 15. bxc3 Bxc3 16. Ra3 Rc8 17. Rxc3 Rxc3 18. Bb2 {1-0 Vicoli,G (2000)-Sabbatini,G (2049) LSS No Engine Cup 212 Preliminary 0 2021}) 12... a5 {[%emt 0:05:29]} 13. Nxb4 {[%emt 0:02:30]} axb4 {[%emt 0:00:24]} 14. e5 {[%emt 0:02:48]} Nd5 {[%emt 0:08:44]} 15. Qe4 {[%emt 0:05:19][%csl Gd3][%cal Re4h7]} g6 {[%emt 0:04:49]} 16. Bg5 {[%emt 0:02:00]} Qb8 {[%emt 0:01:05]} 17. Qh4 {[%emt 0:01:15]} cxd4 {[%emt 0:10:11]} 18. Rfe1 {[%emt 0:00:38]} h5 {[%emt 0:01:08]} (18... Nc5 19. Qh6 (19. Qxd4 Nc7 $11) 19... f6 (19... Nxd3 20. Bf6 Nxf6 21. exf6) 20. exf6 Rxf6 21. Bxf6 Nxf6 22. Ne5 $18 (22. Bxg6 Qf8 $11)) (18... Rc8 $1 $14) 19. Bh6 $36 {[%emt 0:08:37][%mdl 2048] White is more active.} ({White should play} 19. Bb5 $16 Nc5 20. Nxd4 (20. Qxd4 Nb3 $17)) 19... Rc8 {[%emt 0:04:36]} ({Better is} 19... Nc5 $1 $14 20. Bc4 (20. Qxd4 Nb3 $11) 20... Qd8) 20. Qg5 {[%emt 0:02:27] White has more active pieces.} (20. Nxd4 $6 Nxe5 21. Be2 Qc7 $14) (20. Qg3 $142 $1 {[%cal Od3g6] Black must now prevent Bxg6!} Nf8 21. Nxd4) 20... Nf8 $2 {[%emt 0:00:30][%mdl 8192]} (20... Kh8 $16 {keeps fighting.}) 21. Bxf8 $1 $18 {[%emt 0:04:31]} (21. Nxd4 Rc5 22. Qg3 Qd8 $16) 21... Kxf8 {[%emt 0:00:01][%cal Bg8f8,Bf8e8,Be8d7][%mdl 32] [#]} 22. Bxg6 $1 {[%emt 0:00:09][%mdl 512]} fxg6 {[%emt 0:00:33]} 23. Qh6+ $1 {[%emt 0:00:47]} ({Less strong is} 23. Qxg6 Rc6 $16) (23. Nxd4 Kf7 $11) 23... Ke8 {[%emt 0:01:03] ...Ne7 is the strong threat.} 24. Qxg6+ {[%emt 0:15:52]} Kd7 {[%emt 0:21:16] [#] Hoping for ...Rg8.} 25. Qf7+ $1 {[%emt 0:00:04]} ({Worse is} 25. Qxh5 Rc4 26. b3 Rc3 27. Nxd4 Qg8 $17) ({And not} 25. Nxd4 Re8 $11) 25... Ne7 {[%emt 0:00:00][%cal Bd5e7,Be7f5,Bf5d4,Bd4c2][%mdl 32] Strongly threatening ...Rf8.} 26. Nxd4 {[%emt 0:00:04]} Bd5 {[%emt 0:00:00] [#]} 27. Nxe6 $1 {[%emt 0:00:52][%cal Oa1d1][%mdl 512] aiming for Rad1!} Rf8 {[%emt 0:00:00]} (27... Rc7 28. Red1) 28. Nxf8+ {[%emt 0:00:19]} Qxf8 {[%emt 0:00:00]} 29. Qxh5 {[%emt 0:00:30]} Qf5 {[%emt 0:00:00]} 30. Qxf5+ {[%emt 0:01:05]} Nxf5 {[%emt 0:00:00]} 31. f3 {[%emt 0:00:25][%cal Bf2f3,Bf3f4,Bf4f5,Bf5f6][%mdl 32]} Ke6 {[%emt 0:00:00]} 32. Kf2 {[%emt 0:00:29]} Nd4 {[%emt 0:00:15]} 33. Rad1 {[%emt 0:00:15]} Nc2 {[%emt 0:00:42]} 34. Re2 {[%emt 0:00:09]} b3 {[%emt 0:00:10]} 35. f4 {[%emt 0:00:39][%cal Of4f5] f5+! would now be deadly.} Rf8 {[%emt 0:02:45]} 36. g3 {[%emt 0:00:07][%cal Bg2g3,Bg3g4][%mdl 32]} Nb4 {[%emt 0:00:28]} 37. h4 {[%emt 0:00:49]} Rc8 {[%emt 0:01:27]} 38. g4 {[%emt 0:00:55]} Rc2 {[%emt 0:00:06]} 39. f5+ {[%emt 0:00:16]} Ke7 {[%emt 0:01:37]} 40. Rd4 {[%emt 0:00:43]} Be4 {[%emt 0:00:00]} 41. f6+ {[%emt 0:01:32]} Ke6 {[%emt 0:01:00]} 42. Rxb4 {[%emt 0:00:46]} Bd3 {[%emt 0:00:00]} 43. Rxb6+ {[%emt 0:00:05]} Kd5 {[%emt 0:00:00]} 44. Rd6+ {[%emt 0:00:07]} Kc4 {[%emt 0:00:00]} 45. Rxc2+ {[%emt 0:00:22]} bxc2 {[%emt 0:00:00]} 46. Rc6+ {[%emt 0:00:07]} Kb3 {[%emt 0:00:00] [#]} 47. Rxc2 $3 {[%emt 0:00:13]} 1-0

[Event "Charlotte Spring GM-A 2024"]
[Site "Charlotte"]
[Date "2024.03.30"]
[Round "6.3"]
[White "Cruz, Cristhian"]
[Black "Ali Marandi, Cemil Can"]
[Result "1/2-1/2"]
[ECO "D14"]
[WhiteElo "2487"]
[BlackElo "2516"]
[Annotator "TA"]
[PlyCount "52"]
[EventDate "2024.03.27"]
[EventType "tourn"]
[EventCountry "USA"]
[SourceTitle "playchess.com"]
[Source "ChessBase"]
[SourceQuality "1"]
[TimeControl "5400+30"]

{[%evp 20,52,19,14,9,0,16,17,12,10,12,10,15,13,6,13,29,36,29,19,23,6,8,0,0,0,0,0,0,0,0,0,0,0,0]} 1. d4 {[%emt 0:06:03]} d5 {[%emt 0:00:53]} 2. c4 {[%emt 0:01:15]} c6 {[%emt 0:01:40]} 3. Nf3 {[%emt 0:03:19]} Nf6 {[%emt 0:08:13]} 4. cxd5 {[%emt 0:03:03]} cxd5 {[%emt 0:00:08]} 5. Nc3 {[%emt 0:00:07]} Nc6 {[%emt 0:00:08]} 6. Bf4 {[%emt 0:01:17]} Bf5 {[%emt 0:03:25]} 7. e3 {[%emt 0:03:42]} e6 {[%emt 0:01:04]} 8. Qb3 {[%emt 0:05:31]} Bb4 {[%emt 0:04:07]} 9. Bb5 {[%emt 0:05:19]} O-O {[%emt 0:03:38]} 10. Bxc6 {[%emt 0:05:05]} Bxc3+ {[%emt 0:02:48]} 11. Qxc3 {[%emt 0:00:25]} Rc8 {[%emt 0:01:31] [#]} 12. Ne5 $1 {[%emt 0:04:45][%cal Oe1g1]} Ng4 {[%emt 0:02:19]} (12... bxc6 13. Qa3) 13. Nxg4 {[%emt 0:03:57]} Bxg4 {[%emt 0:00:27] [#]} 14. Qb4 $1 {[%emt 0:00:06]} Rxc6 {[%emt 0:00:58] Black is weak on the dark squares} 15. Qxb7 {[%emt 0:02:54]} Qc8 {[%emt 0:01:50]} 16. Qxc8 {[%emt 0:00:36]} (16. Qxa7 $2 {is a self mate.} Rc1+ 17. Rxc1 Qxc1#) 16... Rfxc8 {[%emt 0:00:09]} 17. O-O {[%emt 0:01:39]} a5 {[%emt 0:04:02]} 18. f3 {[%emt 0:01:44]} Bf5 {[%emt 0:01:42]} 19. g4 {[%emt 0:00:52]} Bg6 {[%emt 0:01:13]} 20. h4 {[%emt 0:02:14]} h5 {[%emt 0:01:33] The position is equal.} 21. g5 {[%emt 0:00:21]} a4 {[%emt 0:01:23]} 22. b3 {[%emt 0:03:22]} axb3 {[%emt 0:01:58]} 23. axb3 {[%emt 0:00:03]} Rb6 {[%emt 0:00:13]} 24. Ra3 {[%emt 0:44:51]} Rc3 {[%emt 0:00:11]} 25. Kg2 {[%emt 0:00:00]} Rbxb3 {[%emt 0:00:29]} 26. Rxb3 {[%emt 0:00:00]} Rxb3 {[%emt 0:00:05] Weighted Error Value: White=0.03 (flawless) /Black=0.03 (flawless) .  OK:         	White=6     	Black=10     Best:        	White=1     	---} 1/2-1/2

[Event "Charlotte Spring GM-A 2024"]
[Site "Charlotte"]
[Date "2024.03.30"]
[Round "6.4"]
[White "Gauri, Shankar"]
[Black "Chen, Ryo"]
[Result "0-1"]
[ECO "A24"]
[WhiteElo "2345"]
[BlackElo "2316"]
[Annotator "RC"]
[PlyCount "126"]
[EventDate "2024.03.27"]
[EventType "tourn"]
[EventCountry "USA"]
[SourceTitle "playchess.com"]
[Source "ChessBase"]
[SourceQuality "1"]
[TimeControl "5400+30"]

1. Nf3 {[%emt 0:11:26]} Nf6 {[%emt 0:00:06]} 2. c4 {[%emt 0:00:57]} g6 {[%emt 0:00:16]} 3. g3 {[%emt 0:00:17]} Bg7 {[%emt 0:00:08]} 4. Bg2 {[%emt 0:00:05]} O-O {[%emt 0:00:10]} 5. Nc3 {[%emt 0:00:37]} d6 {[%emt 0:01:06]} 6. O-O {[%emt 0:01:21]} e5 {[%emt 0:00:08]} 7. d3 {[%emt 0:00:24]} c6 {[%emt 0:00:16]} 8. Rb1 {[%emt 0:01:44]} a5 {[%emt 0:00:09]} 9. a3 {[%emt 0:01:38]} Re8 {[%emt 0:00:33]} 10. e4 {[%emt 0:03:47]} Bg4 {[%emt 0:02:44]} 11. h3 {[%emt 0:02:52]} Bxf3 {[%emt 1:30:24]} 12. Qxf3 {[%emt 0:05:45]} Nbd7 {[%emt 0:00:00]} 13. b4 {[%emt 0:01:16]} axb4 {[%emt 0:00:00]} 14. axb4 {[%emt 0:00:08]} Nf8 {[%emt 0:00:00]} 15. Qd1 {[%emt 0:06:20]} Ne6 {[%emt 0:00:00]} 16. Be3 {[%emt 0:01:11]} h5 {[%emt 0:00:00]} 17. Qd2 {[%emt 0:16:41]} h4 {[%emt 0:00:00]} 18. Ra1 {[%emt 0:11:07]} Nh5 {[%emt 0:00:00]} 19. Ne2 {[%emt 0:02:48]} Qd7 {[%emt 0:00:00]} 20. Kh2 {[%emt 0:07:01]} Rxa1 {[%emt 0:00:00]} 21. Rxa1 {[%emt 0:00:02]} f5 {[%emt 0:00:00]} 22. exf5 {[%emt 0:09:27]} gxf5 {[%emt 0:00:00]} 23. Bf3 {[%emt 0:03:47]} Nf6 {[%emt 0:00:00]} 24. Rg1 {[%emt 0:05:29]} d5 {[%emt 0:00:00]} 25. cxd5 {[%emt 0:01:14]} cxd5 {[%emt 0:00:00]} 26. Bh6 {[%emt 0:00:29]} Kh7 {[%emt 0:07:30]} 27. Bxg7 {[%emt 0:00:07]} Qxg7 {[%emt 0:00:00]} 28. gxh4 {[%emt 0:00:20]} Qc7 {[%emt 0:00:00]} 29. Kh1 {[%emt 0:00:54]} e4 {[%emt 0:00:00]} 30. dxe4 {[%emt 0:03:23]} dxe4 {[%emt 0:00:00]} 31. Qb2 {[%emt 0:01:31]} Rf8 {[%emt 0:00:00]} 32. Bg2 {[%emt 0:01:24]} Nh5 {[%emt 0:00:00]} 33. Qb3 {[%emt 0:00:54]} Qe5 {[%emt 0:00:00]} 34. Ng3 {[%emt 0:00:32]} Nhf4 {[%emt 0:00:00]} 35. Bf1 {[%emt 0:00:21]} b5 {[%emt 0:00:00]} 36. h5 {[%emt 0:00:22]} Ng5 {[%emt 0:00:00]} 37. Bg2 {[%emt 0:00:48]} Nd3 {[%emt 0:00:00]} 38. Qa2 {[%emt 0:00:30]} f4 {[%emt 0:00:00]} 39. Qa7+ {[%emt 0:00:30]} Kh8 {[%emt 0:00:00]} 40. Nxe4 {[%emt 0:00:29]} Nxe4 {[%emt 0:00:00]} 41. Bxe4 {[%emt 0:00:10]} Qxe4+ {[%emt 0:00:00]} 42. Kh2 {[%emt 0:00:04]} Rg8 {[%emt 0:00:00]} 43. Rxg8+ {[%emt 0:01:04]} Kxg8 {[%emt 0:00:00]} 44. Qb8+ {[%emt 0:00:41]} Kh7 {[%emt 0:00:00]} 45. Qxb5 {[%emt 0:00:29]} Ne5 {[%emt 0:00:00]} 46. Qa5 {[%emt 0:00:33]} Nf3+ {[%emt 0:00:00]} 47. Kg2 {[%emt 0:00:01]} Nh4+ {[%emt 0:00:00]} 48. Kf1 {[%emt 0:00:02]} Qb1+ {[%emt 0:00:00]} 49. Ke2 {[%emt 0:00:01]} Qc2+ {[%emt 0:00:00]} 50. Ke1 {[%emt 0:00:04]} Qc1+ {[%emt 0:00:00]} 51. Ke2 {[%emt 0:00:01]} Qc4+ {[%emt 0:00:00]} 52. Kd1 {[%emt 0:02:14]} Qf1+ {[%emt 0:00:00]} 53. Kc2 {[%emt 0:00:23]} Qxf2+ {[%emt 0:00:00]} 54. Kb3 {[%emt 0:00:25]} Qf3+ {[%emt 0:00:00]} 55. Kc4 {[%emt 0:00:48]} Qe4+ {[%emt 0:00:00]} 56. Kc3 {[%emt 0:00:08]} Nf5 {[%emt 0:00:00]} 57. Qc7+ {[%emt 0:01:15]} Kh6 {[%emt 0:00:00]} 58. Qf7 {[%emt 0:00:20]} Ne7 {[%emt 0:00:00]} 59. Qc4 {[%emt 0:00:48]} Nd5+ {[%emt 0:00:00]} 60. Kb3 {[%emt 0:00:01]} Qxc4+ {[%emt 0:00:00]} 61. Kxc4 {[%emt 0:00:01]} Nxb4 {[%emt 0:00:00]} 62. Kd4 {[%emt 0:00:50]} Kxh5 {[%emt 0:00:00]} 63. Ke4 {[%emt 0:00:01]} Nd5 {[%emt 0:00:00]} 0-1

[Event "Charlotte Spring GM-A 2024"]
[Site "Charlotte"]
[Date "2024.03.30"]
[Round "6.5"]
[White "Tsay, Vincent"]
[Black "Putnam, Liam"]
[Result "1/2-1/2"]
[ECO "E04"]
[WhiteElo "2337"]
[BlackElo "2323"]
[Annotator "RC"]
[PlyCount "107"]
[EventDate "2024.03.27"]
[EventType "tourn"]
[EventCountry "USA"]
[SourceTitle "playchess.com"]
[Source "ChessBase"]
[SourceQuality "1"]
[TimeControl "5400+30"]

1. d4 {[%emt 0:10:17]} Nf6 {[%emt 0:00:15]} 2. Nf3 {[%emt 0:00:08]} e6 {[%emt 0:00:31]} 3. c4 {[%emt 0:00:11]} d5 {[%emt 0:00:43]} 4. g3 {[%emt 0:00:20]} Bb4+ {[%emt 0:01:02]} 5. Nbd2 {[%emt 0:00:35]} dxc4 {[%emt 0:12:04]} 6. Bg2 {[%emt 0:00:15]} b5 {[%emt 0:04:06]} 7. O-O {[%emt 0:00:12]} O-O {[%emt 0:01:14]} 8. a4 {[%emt 0:01:23]} c6 {[%emt 0:00:45]} 9. Ne1 {[%emt 0:00:23]} Nd5 {[%emt 0:01:42]} 10. e4 {[%emt 0:01:39]} Nf6 {[%emt 0:02:41]} 11. Nc2 {[%emt 0:00:46]} Be7 {[%emt 0:00:36]} 12. e5 {[%emt 0:08:44]} Nd5 {[%emt 0:00:49]} 13. h4 {[%emt 0:00:20]} Bb7 {[%emt 0:01:57]} 14. Ne4 {[%emt 0:01:33]} Nd7 {[%emt 0:10:50]} 15. Qg4 {[%emt 0:02:14]} Kh8 {[%emt 0:03:26]} 16. Bg5 {[%emt 1:09:30]} f5 {[%emt 0:12:33]} 17. exf6 {[%emt 0:00:00]} N7xf6 {[%emt 0:43:46]} 18. Bxf6 {[%emt 0:00:00]} Nxf6 {[%emt 0:00:00]} 19. Nxf6 {[%emt 0:00:00]} Rxf6 {[%emt 0:00:00]} 20. axb5 {[%emt 0:00:00]} Qb6 {[%emt 0:00:00]} 21. bxc6 {[%emt 0:00:00]} Bxc6 {[%emt 0:00:00]} 22. Bxc6 {[%emt 0:00:00]} Qxc6 {[%emt 0:00:00]} 23. Ne3 {[%emt 0:00:00]} Rg6 {[%emt 0:00:00]} 24. Qh3 {[%emt 0:00:00]} Qe4 {[%emt 0:00:00]} 25. Qh1 {[%emt 0:00:00]} Rxg3+ {[%emt 0:00:00]} 26. fxg3 {[%emt 0:00:00]} Qxe3+ {[%emt 0:00:00]} 27. Kh2 {[%emt 0:00:00]} Rb8 {[%emt 0:00:00]} 28. Rxa7 {[%emt 0:00:00]} Bxh4 {[%emt 0:00:00]} 29. Qf3 {[%emt 0:00:00]} Qxf3 {[%emt 0:00:00]} 30. Rxf3 {[%emt 0:00:00]} Bf6 {[%emt 0:00:00]} 31. b3 {[%emt 0:00:00]} cxb3 {[%emt 0:00:00]} 32. Rxb3 {[%emt 0:00:00]} Rc8 {[%emt 0:00:00]} 33. Rc7 {[%emt 0:00:00]} Rf8 {[%emt 0:00:00]} 34. Rd7 {[%emt 0:00:00]} h6 {[%emt 0:00:00]} 35. Re3 {[%emt 0:00:00]} Re8 {[%emt 0:00:00]} 36. d5 {[%emt 0:00:00]} e5 {[%emt 0:00:00]} 37. d6 {[%emt 0:00:00]} Re6 {[%emt 0:00:00]} 38. Re4 {[%emt 0:00:00]} Kh7 {[%emt 0:00:00]} 39. Kg2 {[%emt 0:00:00]} Kg6 {[%emt 0:00:24]} 40. Kf3 {[%emt 0:00:00]} h5 {[%emt 0:00:38]} 41. Rc4 {[%emt 0:00:00]} Kf5 {[%emt 0:10:58]} 42. Rc6 {[%emt 0:00:02]} e4+ {[%emt 0:00:00]} 43. Ke3 {[%emt 0:01:00]} Re5 {[%emt 0:00:00]} 44. Rb7 {[%emt 0:06:15]} Rd5 {[%emt 0:00:00]} 45. Ke2 {[%emt 0:00:54]} Ke5 {[%emt 0:00:00]} 46. Re7+ {[%emt 0:02:44]} Kf5 {[%emt 0:01:01]} 47. Rb7 Kg4 {[%emt 0:01:59]} 48. d7 {[%emt 0:03:25]} Kxg3 {[%emt 0:00:30]} 49. Ke3 {[%emt 0:00:11]} h4 {[%emt 0:00:00]} 50. Kxe4 {[%emt 0:00:21]} Re5+ {[%emt 0:00:00]} 51. Kd3 {[%emt 0:00:41]} Rd5+ {[%emt 0:00:00]} 52. Ke4 {[%emt 0:01:24]} Re5+ {[%emt 0:00:04]} 53. Kd3 {[%emt 0:00:03]} Rd5+ {[%emt 0:00:03]} 54. Kc4 {[%emt 0:02:00]} 1/2-1/2